bitfinex/quotes_BTCUSD_20251202
["timestamp","ask_amount","ask_price","bid_price","bid_amount"]
[1764634865457,0.00038565,86371.0,86370.0,0.13213]
[1764634865974,0.23194485,86371.0,86370.0,0.003]
[1764634866741,0.55494485,86371.0,86370.0,0.002]
[1764634866945,0.67017081,86371.0,86370.0,0.002]
[1764634867202,2.54435853,86371.0,86370.0,0.002]
[1764634867406,0.0115797,86358.0,86347.0,0.02774]
[1764634867605,0.323,86349.0,86347.0,0.02774]
[1764634867748,0.55462088,86348.0,86347.0,0.03917505]
[1764634867950,0.55462088,86348.0,86347.0,0.02774]
[1764634868609,0.323,86347.0,86339.0,0.02955]
[1764634869201,0.323,86347.0,86339.0,0.04113225]
[1764634869556,0.23162088,86348.0,86339.0,0.02955]
[1764634869835,0.23162088,86348.0,86347.0,0.02774]
[1764634870248,0.23162088,86348.0,86346.0,0.0051]
[1764634871006,0.23162088,86348.0,86346.0,0.0011]
[1764634871266,0.23162088,86348.0,86346.0,0.0001]
[1764634871392,0.23162088,86348.0,86347.0,0.003]
[1764634871591,0.23162088,86348.0,86347.0,0.001]
[1764634872019,0.23162088,86348.0,86346.0,0.0021]
[1764634872221,0.23162088,86348.0,86347.0,0.02774]
[1764634872426,0.03090441,86366.0,86347.0,0.02774]
[1764634872427,0.0115801,86355.0,86347.0,0.13404117]
[1764634872628,0.3345805,86352.0,86348.0,0.03801]
[1764634872845,0.323,86352.0,86351.0,0.01143505]
[1764634873046,0.323,86352.0,86351.0,0.10615505]
[1764634873250,0.06572175,86370.0,86356.0,0.01157997]
[1764634873610,0.06572175,86370.0,86360.0,0.01157943]
[1764634873611,0.01157836,86368.0,86360.0,0.01157943]
[1764634873756,0.01157863,86366.0,86360.0,0.01157943]
[1764634873966,0.01157863,86366.0,86361.0,0.05671]
[1764634874156,0.01157889,86364.0,86361.0,0.05671]
[1764634874538,0.01157889,86364.0,86363.0,0.06575]
[1764634874946,0.01157889,86364.0,86363.0,0.12246]
[1764634875331,0.01157889,86364.0,86363.0,0.065454]
[1764634875532,0.01157943,86360.0,86356.0,0.00038565]
[1764634875751,0.01157956,86359.0,86356.0,0.01196562]
[1764634875955,0.01157956,86359.0,86358.0,0.03801]
[1764634876868,0.01157956,86359.0,86356.0,0.00038565]
[1764634877078,0.23159674,86357.0,86356.0,0.00038565]
[1764634877272,0.23159674,86357.0,86356.0,0.03839565]
[1764634877678,0.24317356,86359.0,86356.0,0.09510565]
[1764634877881,0.01157956,86359.0,86358.0,0.03801]
[1764634878297,0.01157956,86359.0,86358.0,0.09472]
[1764634878730,0.01157956,86359.0,86358.0,0.03801]
[1764634879088,0.01157956,86359.0,86358.0,0.09472]
[1764634879501,0.01157956,86359.0,86358.0,0.03801]
[1764634879898,0.23159406,86358.0,86356.0,0.00038565]
[1764634881140,0.01157956,86359.0,86356.0,0.00038565]
[1764634881499,0.23159406,86358.0,86356.0,0.00038565]
[1764634881724,0.01157956,86359.0,86358.0,0.03801]
[1764634882159,0.01157956,86359.0,86356.0,0.00038565]
[1764634882587,0.01157903,86363.0,86358.0,0.0495897]
[1764634882806,0.0115793,86361.0,86359.0,0.03801]
[1764634882967,0.24316735,86361.0,86359.0,0.03801]
[1764634883590,0.24316735,86361.0,86360.0,0.03801]
[1764634884156,0.0115793,86361.0,86360.0,0.03801]
[1764634884558,0.01157943,86360.0,86356.0,0.00038565]
[1764634884758,0.55459674,86357.0,86356.0,0.00038565]
[1764634884987,0.34769393,86357.0,86356.0,0.00038565]
[1764634885187,0.34769393,86357.0,86356.0,0.03839565]
[1764634885344,0.323,86357.0,86356.0,0.30045493]
[1764634885742,0.323,86357.0,86356.0,0.13700056]
[1764634885949,0.323,86357.0,86356.0,0.09510565]
[1764634886122,0.55459674,86357.0,86356.0,0.09510565]
[1764634886314,0.57931972,86357.0,86356.0,0.09510565]
[1764634887563,0.57931972,86357.0,86356.0,0.03839565]
[1764634887771,0.68588479,86357.0,86356.0,0.00038565]
[1764634887972,0.7167892,86357.0,86356.0,0.00038565]
[1764634888179,0.68588479,86357.0,86356.0,0.00038565]
[1764634888380,0.7167993,86357.0,86356.0,0.00038565]
[1764634890428,0.7167993,86357.0,86292.0,0.02779]
[1764634890429,0.55462356,86347.0,86329.0,0.02779]
[1764634890638,0.57973195,86347.0,86335.0,0.02779]
[1764634890772,0.57973195,86347.0,86346.0,0.00118358]
[1764634891596,0.57973195,86347.0,86346.0,0.00218358]
[1764634891871,0.57973195,86347.0,86346.0,0.34046487]
[1764634891872,0.02510839,86347.0,86346.0,0.34046487]
[1764634892081,0.00038541,86347.0,86346.0,0.10883863]
[1764634892701,0.00038541,86347.0,86346.0,0.34046487]
[1764634892913,0.00038541,86347.0,86346.0,0.35886487]
[1764634895256,0.00038541,86347.0,86346.0,0.00218358]
[1764634895472,0.00038541,86347.0,86346.0,0.04107358]
[1764634895850,0.00038541,86347.0,86346.0,0.09783358]
[1764634896306,0.00038541,86347.0,86346.0,0.00218358]
[1764634896451,0.03788114,86347.0,86346.0,0.00218358]
[1764634896653,0.00038541,86347.0,86346.0,0.00218358]
[1764634897417,0.02513228,86347.0,86346.0,0.00218358]
[1764634897979,0.02513228,86347.0,86346.0,0.00118358]
[1764634902551,0.02513228,86347.0,86346.0,0.04007358]
[1764634902758,0.00038541,86347.0,86346.0,0.09683358]
[1764634903777,0.00038541,86347.0,86346.0,0.04007358]
[1764634904345,0.00038541,86347.0,86346.0,0.09683358]
[1764634906456,0.00038541,86347.0,86346.0,0.32845982]
[1764634906872,0.00038541,86347.0,86346.0,0.33989487]
[1764634908239,0.00038541,86347.0,86346.0,0.00118358]
[1764634908565,0.00038541,86347.0,86346.0,0.04007358]
[1764634909093,0.00038541,86347.0,86346.0,0.00118358]
[1764634909708,0.01158091,86349.0,86346.0,0.00118358]
[1764634910046,0.323,86347.0,86346.0,0.00016262]
[1764634910398,0.323,86347.0,86346.0,0.0012462]
[1764634916698,0.34777875,86347.0,86346.0,0.0012462]
[1764634917520,0.02477875,86347.0,86346.0,0.0012462]
[1764634917725,0.23162282,86348.0,86346.0,0.0012462]
[1764634918042,0.23162282,86348.0,86347.0,0.00105169]
[1764634918992,0.23262282,86348.0,86347.0,0.00105169]
[1764634919149,0.23162282,86348.0,86347.0,0.00105169]
[1764634919354,0.55462282,86348.0,86347.0,0.00105169]
[1764634919561,0.24323656,86336.0,86333.0,0.07974241]
[1764634919756,0.23165763,86335.0,86333.0,0.00038541]
[1764634920622,0.01158251,86337.0,86334.0,0.03889]
[1764634920864,0.24323515,86337.0,86335.0,0.06585005]
[1764634921202,0.24323515,86337.0,86336.0,0.03889]
[1764634921774,0.01158211,86340.0,86336.0,0.03889]
[1764634922029,0.01158251,86337.0,86333.0,0.24362952]
[1764634922206,0.24321896,86342.0,86339.0,0.03889]
[1764634922424,0.01158158,86344.0,86341.0,0.06865]
[1764634922739,0.23163671,86343.0,86341.0,0.06865]
[1764634922940,0.01158158,86344.0,86343.0,0.03889]
[1764634922941,0.2432155,86344.0,86343.0,0.03889]
[1764634923092,0.5662155,86344.0,86343.0,0.03889]
[1764634923543,0.55463697,86342.0,86341.0,0.02976]
[1764634924280,0.55463697,86342.0,86336.0,0.01258265]
[1764634924281,0.01158238,86338.0,86336.0,0.001]
[1764634924458,0.23165039,86337.0,86336.0,0.001]
[1764634924615,0.01158238,86338.0,86333.0,0.01196846]
[1764634924821,0.01158238,86338.0,86337.0,0.03889]
[1764634925332,0.33458238,86338.0,86337.0,0.03889]
[1764634926084,0.33458238,86338.0,86337.0,0.04089]
[1764634926905,0.33458238,86338.0,86337.0,0.002]
[1764634927103,0.23160713,86354.0,86337.0,0.27401039]
[1764634927408,0.323,86344.0,86343.0,0.02978]
[1764634927828,0.323,86344.0,86343.0,0.07014]
[1764634928567,0.01158131,86346.0,86343.0,0.07014]
[1764634928770,0.323,86347.0,86345.0,0.04036]
[1764634929351,0.55462624,86346.0,86345.0,0.04036]
[1764634929974,0.323,86346.0,86345.0,0.04036]
[1764634930306,0.323,86346.0,86345.0,0.13667029]
[1764634930823,0.23159674,86357.0,86348.0,0.02301609]
[1764634931025,0.24317657,86357.0,86355.0,0.07014]
[1764634931152,0.02481795,86358.0,86355.0,0.07014]
[1764634931347,0.3345797,86358.0,86356.0,0.04036]
[1764634931572,0.56617614,86358.0,86356.0,0.04036]
[1764634931802,0.3345797,86358.0,86357.0,0.04036]
[1764634931967,0.34781582,86358.0,86357.0,0.04036]
[1764634932163,0.323,86358.0,86357.0,0.04036]
[1764634932365,0.323,86358.0,86355.0,0.02978]
[1764634932366,0.3345797,86358.0,86355.0,0.02978]
[1764634932551,0.0115797,86358.0,86355.0,0.02978]
[1764634932762,0.3345797,86358.0,86355.0,0.02978]
[1764634932965,0.323,86358.0,86355.0,0.0413601]
[1764634933426,0.323,86356.0,86355.0,0.02978]
[1764634933625,0.323,86356.0,86353.0,0.01158037]
[1764634934032,0.323,86356.0,86354.0,0.23160239]
[1764634934184,0.323,86356.0,86353.0,0.24318781]
[1764634934390,0.323,86356.0,86355.0,0.04036]
[1764634934609,0.002,86356.0,86355.0,0.04036]
[1764634934890,0.3345797,86358.0,86355.0,0.04036]
[1764634935090,0.56617629,86358.0,86355.0,0.04036]
[1764634935294,0.56617629,86358.0,83397.0,0.00544129]
[1764634935295,0.06359742,86369.0,86330.0,0.0002]
[1764634935296,0.01158265,86336.0,86330.0,0.0002]
[1764634935592,0.01158158,86344.0,86330.0,0.0002]
[1764634935593,0.323,86334.0,86330.0,0.0002]
[1764634935794,0.23163063,86345.0,86330.0,0.0002]
[1764634935795,0.002,86356.0,86344.0,0.24321073]
[1764634936039,0.01158037,86353.0,86344.0,0.04036]
[1764634936242,0.24319036,86353.0,86344.0,0.04036]
[1764634936440,0.01158064,86351.0,86346.0,0.01158131]
[1764634936641,0.01158077,86350.0,86346.0,0.01158131]
[1764634936845,0.01158091,86349.0,86345.0,0.01158144]
[1764634937024,0.01158091,86349.0,86343.0,0.04136171]
[1764634937025,0.23162338,86348.0,86346.0,0.0615]
[1764634937257,0.01158091,86349.0,86343.0,0.02978]
[1764634937258,0.24320789,86346.0,86343.0,0.02978]
[1764634937784,0.24320204,86348.0,86345.0,0.04036]
[1764634938093,0.01158117,86347.0,86344.0,0.0615]
[1764634938255,0.23163161,86344.0,86343.0,0.02978]
[1764634938662,0.23163161,86344.0,86343.0,0.07014]
[1764634939694,0.23163161,86344.0,86343.0,0.13164]
[1764634940661,0.24320755,86346.0,86343.0,0.13164]
[1764634940848,0.23163161,86344.0,86343.0,0.13164]
[1764634941205,0.23163161,86344.0,86343.0,0.07014]
[1764634942708,0.23164234,86340.0,86339.0,0.00025503]
[1764634943585,0.01158184,86342.0,86339.0,0.15266666]
[1764634943789,0.01158184,86342.0,86341.0,0.07014]
[1764634944124,0.01158184,86342.0,86341.0,0.13164]
[1764634944594,0.01158131,86346.0,86341.0,0.13164]
[1764634944595,0.24320729,86347.0,86341.0,0.13164]
[1764634944767,0.323,86351.0,86349.0,0.01143505]
[1764634944999,0.33458064,86351.0,86349.0,0.01143505]
[1764634945133,0.33458064,86351.0,86350.0,0.04036]
[1764634945962,0.323,86353.0,86351.0,0.23161056]
[1764634946168,0.323,86353.0,86351.0,0.30175056]
[1764634946368,0.0115805,86352.0,86349.0,0.0184]
[1764634946580,0.0115805,86352.0,86351.0,0.01143505]
[1764634946778,0.323,86353.0,86351.0,0.01143505]
[1764634946779,0.5546101,86353.0,86351.0,0.02978]
[1764634947092,0.5546101,86353.0,86351.0,0.04121228]
[1764634947235,0.001,86353.0,86352.0,0.10186]
[1764634949389,0.33457997,86356.0,86352.0,0.1134405]
[1764634949633,0.33457997,86356.0,86355.0,0.03936]
[1764634949969,0.33457997,86356.0,86351.0,0.04121228]
[1764634949970,0.33458023,86354.0,86351.0,0.04121228]
[1764634950305,0.323,86354.0,86352.0,0.0615]
[1764634950516,0.323,86354.0,86353.0,0.04036]
[1764634951112,0.323,86355.0,86353.0,0.04036]
[1764634951594,0.323,86355.0,86354.0,0.04036]
[1764634951963,0.3345801,86355.0,86351.0,0.04136064]
[1764634952205,0.243187,86354.0,86351.0,0.02978]
[1764634952556,0.23161011,86353.0,86351.0,0.02978]
[1764634952788,0.0115805,86352.0,86351.0,0.02978]
[1764634953188,0.01158023,86354.0,86351.0,0.13164]
[1764634953389,0.01158023,86354.0,86351.0,0.07014]
[1764634953390,0.24318501,86354.0,86351.0,0.07014]
[1764634953746,0.56618501,86354.0,86353.0,0.04036]
[1764634954074,0.33458023,86354.0,86353.0,0.04036]
[1764634954450,0.323,86354.0,86353.0,0.10186]
[1764634954796,0.323,86354.0,86353.0,0.33346747]
[1764634954949,0.323,86354.0,86353.0,0.34489975]
[1764634955357,0.323,86354.0,86353.0,0.33346747]
[1764634955558,0.323,86354.0,86353.0,0.34489975]
[1764634956531,0.323,86354.0,86353.0,0.23160747]
[1764634956704,0.323,86354.0,86353.0,0.26913747]
[1764634956871,0.323,86354.0,86353.0,0.32670747]
[1764634957055,0.323,86354.0,86353.0,0.33813975]
[1764634962068,0.01158131,86346.0,86344.0,0.0184]
[1764634962463,0.01158091,86349.0,86345.0,0.03753]
[1764634962464,0.24320415,86348.0,86345.0,0.03753]
[1764634962666,0.01158091,86349.0,86345.0,0.03753]
[1764634962873,0.323,86354.0,86351.0,0.01158064]
[1764634963078,0.33458023,86354.0,86353.0,0.03753]
[1764634963478,0.323,86354.0,86353.0,0.0951]
[1764634963862,0.323,86354.0,86353.0,0.03753]
[1764634964068,0.0115805,86352.0,86349.0,0.01158091]
[1764634964261,0.56618501,86354.0,86350.0,0.01158077]
[1764634964467,0.01158037,86353.0,86349.0,0.01158091]
[1764634964947,0.0115805,86352.0,86349.0,0.01158091]
[1764634965152,0.0115805,86352.0,86351.0,0.01143228]
[1764634965748,0.0115805,86352.0,86351.0,0.04896228]
[1764634967399,0.01158037,86353.0,86351.0,0.10653228]
[1764634967804,0.323,86354.0,86351.0,0.11811292]
[1764634968018,0.323,86354.0,86353.0,0.04896228]
[1764634968242,0.323,86354.0,86353.0,0.10653228]
[1764634971405,0.323,86354.0,86353.0,0.03753]
[1764634971608,0.323,86354.0,86353.0,0.33813975]
[1764634971815,0.323,86354.0,86353.0,0.10653228]
[1764634972019,0.323,86354.0,86353.0,0.16970772]
[1764634972164,0.323,86354.0,86353.0,0.10653228]
[1764634972387,0.323,86354.0,86353.0,0.33813975]
[1764634974626,0.323,86354.0,86353.0,0.10653228]
[1764634978138,0.323,86354.0,86351.0,0.01158064]
[1764634978345,0.01158037,86353.0,86350.0,0.01158077]
[1764634978548,0.33458023,86354.0,86353.0,0.03753]
[1764634978927,0.33458023,86354.0,86353.0,0.0951]
[1764634980267,0.323,86354.0,86353.0,0.0951]
[1764634981164,0.323,86354.0,86353.0,0.16011074]
[1764634981372,0.55461551,86350.0,86349.0,0.01836]
[1764634981687,0.24320755,86346.0,86341.0,0.01158198]
[1764634982127,0.24321319,86344.0,86338.0,0.27047752]
[1764634982436,0.33458171,86343.0,86339.0,0.01183728]
[1764634982676,0.323,86343.0,86340.0,0.24322445]
[1764634982827,0.33458171,86343.0,86339.0,0.05782503]
[1764634983030,0.24322148,86342.0,86339.0,0.00025503]
[1764634983421,0.01158158,86344.0,86341.0,0.04911198]
[1764634983778,0.33458144,86345.0,86341.0,0.28075093]
[1764634983978,0.33458144,86345.0,86343.0,0.03753]
[1764634984665,0.33458144,86345.0,86342.0,0.01143228]
[1764634984666,0.323,86348.0,86346.0,0.23162524]
[1764634984894,0.323,86348.0,86347.0,0.06900228]
[1764634985043,0.323,86348.0,86347.0,0.13378228]
[1764634985643,0.01158077,86350.0,86347.0,0.13378228]
[1764634985850,0.01158077,86350.0,86349.0,0.03754]
[1764634986235,0.01158077,86350.0,86349.0,0.09489]
[1764634986438,0.323,86351.0,86349.0,0.09489]
[1764634986661,0.323,86351.0,86350.0,0.09489]
[1764634988245,0.01157956,86359.0,86351.0,0.24319097]
[1764634988507,0.323,86357.0,86355.0,0.01143228]
[1764634988718,0.02480569,86356.0,86355.0,0.01143228]
[1764634988912,0.03638566,86356.0,86353.0,0.01143228]
[1764634989066,0.323,86355.0,86353.0,0.01143228]
[1764634989453,0.5546041,86355.0,86353.0,0.01143228]
[1764634989676,0.02480594,86354.0,86353.0,0.01143228]
[1764634989920,0.42457967,86355.0,86353.0,0.01143228]
[1764634990462,0.42457967,86355.0,86354.0,0.03754]
[1764634993221,0.19297557,86355.0,86354.0,0.03754]
[1764634993399,0.19297557,86355.0,86354.0,0.09489]
[1764634995485,0.04748921,86370.0,86359.0,0.01157956]
[1764634995693,0.01323,86383.0,86375.0,0.01157742]
[1764634995897,0.25631099,86391.0,86383.0,0.01157635]
[1764634996106,0.01157514,86392.0,86385.0,0.04897228]
[1764634996298,0.01157514,86392.0,86385.0,0.10632228]
[1764634996733,0.2430876,86389.0,86385.0,0.10643802]
[1764634996952,0.23151645,86387.0,86385.0,0.04908802]
[1764634997167,0.323,86390.0,86385.0,0.04923182]
[1764634997337,0.323,86390.0,86388.0,0.03754]
[1764634997598,0.323,86390.0,86389.0,0.03754]
[1764634998001,0.323,86390.0,86389.0,0.09489]
[1764634998371,0.33457514,86392.0,86389.0,0.03754]
[1764634999582,0.01157541,86390.0,86386.0,0.01143228]
[1764634999783,0.56608063,86392.0,86387.0,0.01157581]
[1764635000789,0.56608063,86392.0,86388.0,0.01157568]
[1764635001152,0.01157527,86391.0,86388.0,0.01157568]
[1764635001352,0.01157527,86391.0,86387.0,0.01157581]
[1764635001714,0.01157514,86392.0,86389.0,0.01157554]
[1764635002141,0.01157474,86395.0,86391.0,0.03754]
[1764635002338,0.01157474,86395.0,86391.0,0.04911527]
[1764635002663,0.01157487,86394.0,86392.0,0.02803]
[1764635003002,0.01182966,86394.0,86392.0,0.02803]
[1764635004788,0.00025479,86394.0,86393.0,0.09489]
[1764635004967,0.00025479,86394.0,86393.0,0.16235773]
[1764635006858,0.00025479,86394.0,86385.0,0.01169182]
[1764635007019,0.01157514,86392.0,86388.0,0.01836]
[1764635007225,0.01157527,86391.0,86388.0,0.01836]
[1764635007434,0.01157527,86391.0,86388.0,0.02979228]
[1764635007628,0.01157527,86391.0,86388.0,0.08714228]
[1764635007831,0.01157527,86391.0,86390.0,0.03754]
[1764635008024,0.01157568,86388.0,86385.0,0.00011574]
[1764635008229,0.26130899,86386.0,86385.0,0.00011574]
[1764635008616,0.61409899,86386.0,86385.0,0.00011574]
[1764635010930,0.63877961,86386.0,86385.0,0.00011574]
[1764635011131,0.31577961,86386.0,86385.0,0.00011574]
[1764635011533,0.01158077,86350.0,86346.0,0.02803]
[1764635011741,0.0149,86348.0,86346.0,0.02803]
[1764635011965,0.0149,86348.0,86338.0,0.01158238]
[1764635012156,0.0149,86348.0,86339.0,0.03961225]
[1764635012355,0.0149,86348.0,86341.0,0.03961198]
[1764635012557,0.0149,86348.0,86341.0,0.02803]
[1764635012757,0.23161871,86349.0,86347.0,0.00272987]
[1764635012959,0.23161871,86349.0,86347.0,0.00372987]
[1764635014149,0.323,86348.0,86347.0,0.00272987]
[1764635014888,0.323,86348.0,86347.0,0.00172987]
[1764635015308,0.323,86348.0,86347.0,0.00272987]
[1764635015513,4.016e-05,86350.0,86347.0,0.13924707]
[1764635015734,4.016e-05,86350.0,86349.0,0.03868]
[1764635016116,4.016e-05,86350.0,86349.0,0.09738]
[1764635016320,4.016e-05,86350.0,86349.0,0.10881228]
[1764635016567,4.016e-05,86350.0,86349.0,0.16380591]
[1764635016748,4.016e-05,86350.0,86349.0,0.21489662]
[1764635016950,4.016e-05,86350.0,86349.0,0.2273289]
[1764635018103,4.016e-05,86350.0,86349.0,0.2263289]
[1764635018305,4.016e-05,86350.0,86349.0,0.2283289]
[1764635018705,4.016e-05,86350.0,86349.0,0.2293289]
[1764635021705,0.323,86378.0,86377.0,0.23154311]
[1764635021903,0.32304031,86378.0,86377.0,0.24990311]
[1764635022199,0.32304031,86378.0,86377.0,0.34728311]
[1764635022809,4.031e-05,86378.0,86377.0,0.34728311]
[1764635022965,4.031e-05,86378.0,86377.0,0.40227674]
[1764635030333,4.031e-05,86378.0,86377.0,0.41370902]
[1764635030956,4.031e-05,86378.0,86377.0,0.41470902]
[1764635040139,4.031e-05,86378.0,86377.0,0.18316591]
[1764635040716,4.031e-05,86378.0,86377.0,0.16480591]
[1764635040939,4.031e-05,86378.0,86377.0,0.18316591]
[1764635042973,4.031e-05,86378.0,86377.0,0.17173363]
[1764635043168,4.031e-05,86378.0,86377.0,0.18316591]
[1764635044310,4.031e-05,86378.0,86377.0,0.18216591]
[1764635044437,4.031e-05,86378.0,86377.0,0.18316591]
[1764635051424,4.031e-05,86378.0,86377.0,0.2456889]
[1764635053222,4.031e-05,86378.0,86377.0,0.6446889]
[1764635053541,4.031e-05,86378.0,86377.0,0.6486889]
[1764635053898,4.031e-05,86378.0,86377.0,0.6446889]
[1764635054124,0.00025479,86394.0,86377.0,0.6446889]
[1764635054125,0.00025479,86394.0,86393.0,0.29402322]
[1764635054324,0.00025479,86394.0,86393.0,0.47992261]
[1764635054525,0.00025479,86394.0,86393.0,0.53281261]
[1764635055542,0.00025479,86394.0,86393.0,0.53581261]
[1764635055838,0.00025479,86394.0,86393.0,0.53381261]
[1764635056167,0.00025479,86394.0,86393.0,0.53681261]
[1764635056492,0.00025479,86394.0,86393.0,0.53781261]
[1764635059713,0.00025479,86394.0,86393.0,0.51945261]
[1764635059851,0.00025479,86394.0,86393.0,0.53781261]
[1764635061354,0.00025479,86394.0,86393.0,0.53381261]
[1764635061759,0.00025479,86394.0,86393.0,0.53581261]
[1764635061967,0.00025479,86394.0,86393.0,0.53681261]
[1764635066445,0.0149,86432.0,86416.0,0.01157193]
[1764635066797,0.56597899,86428.0,86427.0,0.01143228]
[1764635066981,0.56598468,86426.0,86418.0,0.01157166]
[1764635067190,0.56598468,86426.0,86425.0,0.01143228]
[1764635067458,0.56598468,86426.0,86417.0,0.01836]
[1764635067459,0.01157112,86422.0,86417.0,0.01836]
[1764635067662,0.56599367,86422.0,86421.0,0.01143228]
[1764635068169,0.62267367,86422.0,86421.0,5.366e-05]
[1764635071212,0.323,86422.0,86421.0,5.366e-05]
[1764635071832,0.323,86422.0,86421.0,0.01148594]
[1764635072030,0.323,86422.0,86421.0,5.366e-05]
[1764635072404,0.35134,86422.0,86421.0,0.00105366]
[1764635072609,0.3803,86422.0,86421.0,0.00105366]
[1764635072788,0.49122661,86422.0,86421.0,0.00105366]
[1764635073181,0.5159741,86422.0,86421.0,5.366e-05]
[1764635073555,0.51686552,86422.0,86421.0,5.366e-05]
[1764635075312,0.40593891,86422.0,86421.0,5.366e-05]
[1764635079133,0.34863891,86422.0,86421.0,5.366e-05]
[1764635079654,0.37724891,86422.0,86421.0,5.366e-05]
[1764635082267,0.37956812,86422.0,86421.0,5.366e-05]
[1764635083279,0.40817812,86422.0,86421.0,5.366e-05]
[1764635083734,0.02563891,86422.0,86421.0,0.10222594]
[1764635083936,0.00089142,86422.0,86421.0,5.366e-05]
[1764635084075,0.00089142,86422.0,86421.0,0.01148594]
[1764635084295,0.00089142,86422.0,86421.0,5.366e-05]
[1764635084511,0.35250142,86422.0,86421.0,5.366e-05]
[1764635084717,0.32389142,86422.0,86421.0,0.00105366]
[1764635085748,0.35250142,86422.0,86421.0,0.00105366]
[1764635085947,0.37731631,86422.0,86421.0,0.00105366]
[1764635086281,0.02950142,86422.0,86421.0,0.00105366]
[1764635086764,0.26092397,86422.0,86421.0,0.00105366]
[1764635086966,0.28953397,86422.0,86421.0,0.00105366]
[1764635087165,0.31434933,86422.0,86421.0,0.00105366]
[1764635087465,0.31434937,86422.0,86421.0,5.366e-05]
[1764635087907,0.63734937,86422.0,86421.0,5.366e-05]
[1764635089221,0.60873937,86422.0,86421.0,5.366e-05]
[1764635090031,0.63734937,86422.0,86421.0,5.366e-05]
[1764635093296,0.60873937,86422.0,86421.0,5.366e-05]
[1764635094036,0.58012937,86422.0,86421.0,5.366e-05]
[1764635094245,0.34870682,86422.0,86421.0,5.366e-05]
[1764635094440,0.32389142,86422.0,86421.0,0.03083777]
[1764635094655,0.32389142,86422.0,86421.0,0.06836777]
[1764635095310,0.32389142,86422.0,86421.0,0.13301005]
[1764635095757,0.32389142,86422.0,86421.0,0.03901594]
[1764635098723,0.32389142,86422.0,86421.0,0.01143228]
[1764635100207,0.32389142,86422.0,86421.0,0.04896228]
[1764635100412,0.32389142,86422.0,86421.0,0.33359751]
[1764635102999,0.32389142,86422.0,86421.0,0.32216523]
[1764635103207,0.32389142,86422.0,86421.0,0.33359751]
[1764635105782,0.00089142,86422.0,86421.0,0.33359751]
[1764635106779,0.00089142,86422.0,86421.0,0.32216523]
[1764635106992,0.00089142,86422.0,86421.0,0.3961205]
[1764635107190,0.0004,86440.0,86439.0,0.23137704]
[1764635107398,0.0004,86440.0,86439.0,0.41902002]
[1764635107594,0.0004,86440.0,86439.0,0.47225002]
[1764635107801,0.0004,86440.0,86439.0,0.4836823]
[1764635108676,0.0004,86440.0,86439.0,0.4866823]
[1764635108843,0.0004,86440.0,86439.0,0.4846823]
[1764635109232,0.0004,86450.0,86449.0,0.29387326]
[1764635109538,0.0004,86470.0,86469.0,0.24272904]
[1764635109736,0.0004,86470.0,86469.0,0.31925904]
[1764635109923,0.0004,86470.0,86469.0,0.37248904]
[1764635110364,0.00078718,86470.0,86469.0,0.37248904]
[1764635111444,0.00078718,86470.0,86469.0,0.43601203]
[1764635111676,0.00078718,86470.0,86469.0,0.48660202]
[1764635112177,0.00078718,86470.0,86469.0,0.48560202]
[1764635112351,0.00078718,86470.0,86469.0,0.47416974]
[1764635112507,0.00078718,86470.0,86469.0,0.48560202]
[1764635113112,0.00078718,86470.0,86469.0,0.48360202]
[1764635113310,0.00231423,86470.0,86469.0,0.48360202]
[1764635113521,0.00231423,86470.0,86469.0,0.43460202]
[1764635113761,0.0004,86480.0,86479.0,0.293793]
[1764635113941,0.00051609,86480.0,86479.0,0.45162495]
[1764635114142,0.00051609,86480.0,86479.0,0.46994495]
[1764635114344,0.00051609,86480.0,86479.0,0.45162495]
[1764635114582,0.00051609,86480.0,86479.0,0.46994495]
[1764635114964,0.00051609,86480.0,86479.0,0.47094495]
[1764635115510,0.00051609,86480.0,86479.0,0.47294495]
[1764635116034,0.00051609,86480.0,86479.0,0.45462495]
[1764635116242,0.00051609,86480.0,86479.0,0.47294495]
[1764635117663,0.00051609,86480.0,86479.0,0.62034495]
[1764635118285,0.00051609,86480.0,86479.0,0.50454229]
[1764635118517,0.00051609,86480.0,86479.0,0.51143001]
[1764635118731,0.00051609,86480.0,86479.0,0.52286229]
[1764635119346,0.0008341,86480.0,86479.0,0.52286229]
[1764635119551,0.0008341,86480.0,86479.0,0.51143001]
[1764635119833,0.0008341,86480.0,86479.0,0.52286229]
[1764635120708,0.0008341,86480.0,86479.0,0.37546229]
[1764635123542,0.0008341,86480.0,86479.0,0.43798528]
[1764635123956,0.0008341,86480.0,86479.0,0.58538528]
[1764635125944,0.0008341,86480.0,86479.0,0.52286229]
[1764635127351,0.0008341,86480.0,86479.0,0.573953]
[1764635127546,0.0008341,86480.0,86479.0,0.58538528]
[1764635133337,0.24271545,86522.0,86479.0,0.58538528]
[1764635133338,0.01155615,86534.0,86526.0,0.01155721]
[1764635133561,0.01155681,86529.0,86527.0,0.01143228]
[1764635133762,0.55413905,86528.0,86527.0,0.01143228]
[1764635133970,0.01155775,86522.0,86518.0,0.02257]
[1764635134170,0.02126,86526.0,86521.0,0.23115721]
[1764635134377,0.323,86527.0,86523.0,0.01155762]
[1764635134776,0.01155721,86526.0,86522.0,0.26761046]
[1764635134962,0.01155762,86523.0,86517.0,0.01832]
[1764635135165,0.01155775,86522.0,86518.0,0.01155828]
[1764635135370,0.01155775,86522.0,86519.0,0.06359742]
[1764635135580,0.323,86524.0,86520.0,0.03477643]
[1764635135780,0.33455748,86524.0,86521.0,0.0264]
[1764635136207,0.01155735,86525.0,86521.0,0.03795788]
[1764635136629,0.01155748,86524.0,86521.0,0.0264]
[1764635136839,0.33455748,86524.0,86521.0,0.0264]
[1764635137467,0.02475191,86523.0,86521.0,0.0264]
[1764635137854,0.01155842,86517.0,86510.0,0.03412935]
[1764635138039,0.33455842,86517.0,86511.0,0.01832]
[1764635138243,0.2427358,86514.0,86511.0,0.01832]
[1764635138450,0.01155935,86510.0,86506.0,0.02987989]
[1764635138968,0.01155935,86510.0,86506.0,0.01832]
[1764635138969,0.01155949,86509.0,86506.0,0.01832]
[1764635139165,0.24275127,86509.0,86506.0,0.01832]
[1764635139530,0.24275127,86509.0,86506.0,0.01932]
[1764635139736,0.24275127,86509.0,86506.0,0.01832]
[1764635140322,0.02478201,86510.0,86507.0,0.01155975]
[1764635140535,0.01155922,86511.0,86507.0,0.01155975]
[1764635140748,0.01155935,86510.0,86507.0,0.01155975]
[1764635141184,0.01155935,86510.0,86507.0,0.06295286]
[1764635141970,0.01155935,86510.0,86507.0,0.06395286]
[1764635142146,0.01155935,86510.0,86507.0,0.06295286]
[1764635142356,0.01155935,86510.0,86506.0,0.02987989]
[1764635142357,0.2427493,86509.0,86506.0,0.01832]